bitfinex-derivatives/quotes_BTCF0:USTF0_20251216
["timestamp","ask_amount","ask_price","bid_price","bid_amount"]
[1765899938379,1.49315454,87350.0,87336.0,0.88354]
[1765899938679,0.011452,87340.0,87339.0,0.34327]
[1765899938975,0.04524355,87340.0,87339.0,0.68706]
[1765899939177,1.55e-06,87340.0,87339.0,0.83054]
[1765899939377,0.73060155,87340.0,87339.0,0.83054]
[1765899939577,0.73060155,87340.0,87337.0,0.28592001]
[1765899939578,0.19632954,87370.0,87363.0,0.19648]
[1765899939876,0.94073724,87373.0,87372.0,0.68706]
[1765899940180,0.0114461,87385.0,87384.0,0.68706]
[1765899940376,0.0114446,87396.0,87395.0,0.68706]
[1765899940576,4.716e-05,87396.0,87395.0,0.68706]
[1765899940779,1.4880738,87442.0,87387.0,0.00017164]
[1765899940780,0.19632954,87430.0,87420.0,0.34379]
[1765899940964,0.0114411,87423.0,87422.0,0.68706]
[1765899941166,0.0114411,87423.0,87414.0,0.66284]
[1765899941167,0.0114396,87435.0,87434.0,0.68706]
[1765899941369,1.4423547,87473.0,87434.0,0.68706]
[1765899941370,0.0114375,87451.0,87450.0,0.34379]
[1765899941566,0.0114375,87451.0,87419.0,0.19648]
[1765899941567,0.0114414,87421.0,87419.0,0.19648]
[1765899941783,0.0114383,87445.0,87444.0,0.68706]
[1765899942480,0.7216,87445.0,87444.0,0.68706]
[1765899942673,0.3608,87460.0,87457.0,0.68706]
[1765899942878,0.7216,87460.0,87457.0,0.68706]
[1765899943078,0.00228578,87498.0,87462.0,0.0114359]
[1765899943275,0.3608,87474.0,87470.0,0.00017154]
[1765899943471,0.0114348,87471.0,87470.0,0.00017154]
[1765899943885,0.3608,87490.0,87470.0,0.40017154]
[1765899944184,0.3608,87490.0,87482.0,0.3608]
[1765899944381,0.3608,87490.0,87483.0,0.73596]
[1765899944683,0.3608,87490.0,87484.0,1.51787097]
[1765899944882,0.3608,87490.0,87485.0,0.01787097]
[1765899945093,0.3608,87490.0,87486.0,0.01787097]
[1765899945280,0.3608,87490.0,87487.0,0.01787097]
[1765899945482,0.3608,87490.0,87488.0,0.01787097]
[1765899945679,0.3608,87490.0,87489.0,0.01787097]
[1765899945879,0.3608,87490.0,87489.0,0.75367097]
[1765899946272,0.3608,87490.0,87489.0,1.15367097]
[1765899946585,0.00778701,87513.0,87489.0,2.97354312]
[1765899946786,0.00778701,87513.0,87503.0,0.19632954]
[1765899947078,0.00778701,87513.0,87504.0,0.01787097]
[1765899947079,0.0114295,87512.0,87504.0,0.01787097]
[1765899947286,0.00778701,87513.0,87493.0,0.3608]
[1765899947287,0.3608,87508.0,87505.0,0.01787097]
[1765899947488,0.02150219,87513.0,87506.0,0.01787097]
[1765899947684,0.3608,87508.0,87507.0,0.01787097]
[1765899947889,0.00778701,87513.0,87507.0,0.41787097]
[1765899948072,0.00778701,87513.0,87508.0,0.75427097]
[1765899948073,0.00228578,87512.0,87508.0,0.75427097]
[1765899948274,0.00778701,87513.0,87512.0,0.0114295]
[1765899948488,0.00778701,87513.0,87512.0,1.11543097]
[1765899948489,0.00035531,87513.0,87512.0,1.11543097]
[1765899949186,0.00035531,87513.0,87512.0,1.11527097]
[1765899949390,0.00035531,87513.0,87512.0,0.37867097]
[1765899949584,0.00035531,87513.0,87512.0,1.51519097]
[1765899949986,0.3608,87532.0,87525.0,0.0114277]
[1765899950285,0.3608,87542.0,87512.0,1.52637851]
[1765899950286,0.0114262,87537.0,87526.0,0.75467097]
[1765899950486,0.3608,87542.0,87527.0,0.21377114]
[1765899950692,0.20821999,87590.0,87537.0,0.7216]
[1765899950693,0.011421,87577.0,87537.0,0.7216]
[1765899950880,0.19590017,87550.0,87539.0,0.00017134]
[1765899951080,0.20722,87514.0,87512.0,0.006]
[1765899951291,0.28788582,87528.0,87513.0,0.02929254]
[1765899951590,1.06863016,87527.0,87526.0,0.005]
[1765899951787,1.06863016,87527.0,87526.0,0.02286324]
[1765899951994,0.41818674,87527.0,87526.0,0.02286324]
[1765899952195,0.02978658,87527.0,87526.0,0.02086324]
[1765899952387,0.41818674,87527.0,87526.0,0.74246324]
[1765899952788,0.02978658,87527.0,87526.0,0.74246324]
[1765899953287,8e-08,87527.0,87526.0,1.25266324]
[1765899953488,2e-08,87535.0,87526.0,1.24966324]
[1765899953693,2e-08,87535.0,87534.0,0.3722266]
[1765899953891,2e-08,87535.0,87534.0,0.39008984]
[1765899954195,0.20722,87571.0,87557.0,0.0114236]
[1765899954398,0.20722,87571.0,87557.0,0.75088684]
[1765899954593,0.33788582,87558.0,87557.0,0.75088684]
[1765899955388,0.20722,87571.0,87570.0,0.0114219]
[1765899955588,0.20722,87571.0,87570.0,0.39008514]
[1765899955894,0.49510582,87571.0,87570.0,0.39008514]
[1765899956285,1.22333598,87571.0,87570.0,0.37866324]
[1765899956687,0.88350598,87571.0,87570.0,0.37866324]
[1765899957186,0.88350598,87571.0,87570.0,0.38066324]
[1765899957387,1.56373598,87571.0,87570.0,0.38066324]
[1765899957583,1.56373598,87571.0,87570.0,0.37866324]
[1765899957892,1.56373598,87571.0,87570.0,0.38066324]
[1765899958086,0.20722,87560.0,87557.0,0.36448668]
[1765899958288,0.49510582,87571.0,87568.0,0.0114221]
[1765899958490,0.49510582,87571.0,87570.0,0.3608]
[1765899959196,1.17533582,87571.0,87570.0,0.3608]
[1765899959500,0.20722,87540.0,87535.0,0.3608]
[1765899959698,0.20722,87540.0,87536.0,0.0114263]
[1765899959995,0.40312017,87560.0,87555.0,0.0114238]
[1765899960291,0.74295017,87560.0,87559.0,0.3722233]
[1765899960494,0.49493448,87560.0,87559.0,0.3722233]
[1765899960998,0.00017134,87568.0,87567.0,0.0114223]
[1765899961194,0.00017134,87568.0,87567.0,0.3722223]
[1765899961195,4e-08,87568.0,87567.0,0.3722223]
[1765899961395,3e-08,87578.0,87577.0,0.011421]
[1765899961597,3e-08,87578.0,87577.0,0.749581]
[1765899961895,3e-08,87578.0,87577.0,0.733021]
[1765899962083,0.68023003,87578.0,87577.0,0.7216]
[1765899962401,0.20722,87590.0,87589.0,0.2186394]
[1765899962896,0.88745,87590.0,87589.0,0.7216]
[1765899963100,0.88745,87590.0,87589.0,0.3608]
[1765899963397,0.68023,87578.0,87577.0,0.004]
[1765899963591,0.3608,87578.0,87574.0,0.0114213]
[1765899963895,0.3608,87578.0,87569.0,0.00017134]
[1765899963896,0.5064,87608.0,87599.0,0.0114181]
[1765899964084,0.0114172,87606.0,87594.0,0.0114187]
[1765899964282,0.0114172,87606.0,87591.0,0.00017123]
[1765899964283,0.0114178,87602.0,87591.0,0.00017123]
[1765899964494,0.69078,87592.0,87591.0,0.00017123]
[1765899964696,1.05158,87592.0,87591.0,0.00017123]
[1765899964887,0.4108,87601.0,87591.0,0.00017123]
[1765899965090,0.4108,87601.0,87599.0,0.011418]
[1765899965295,0.05,87601.0,87600.0,0.68649]
[1765899965501,0.05,87601.0,87600.0,1.04729]
[1765899965699,0.19590017,87630.0,87599.0,0.011418]
[1765899965997,0.34577,87614.0,87613.0,0.0114163]
[1765899966297,0.3608,87623.0,87617.0,0.0114158]
[1765899966892,0.0114154,87621.0,87613.0,0.0114163]
[1765899967293,0.0114156,87619.0,87613.0,0.001]
[1765899967610,0.0114158,87617.0,87613.0,0.001]
[1765899967790,0.70657,87614.0,87613.0,0.001]
[1765899967988,0.70657,87614.0,87609.0,0.00017123]
[1765899967989,0.69078,87610.0,87609.0,0.00017123]
[1765899968203,0.03573579,87610.0,87609.0,0.00017123]
[1765899968392,0.3608,87623.0,87617.0,0.0114158]
[1765899968592,0.03809935,87618.0,87617.0,0.6979058]
[1765899968902,0.00228265,87618.0,87617.0,0.6979058]
[1765899969198,0.00228265,87618.0,87617.0,0.0114158]
[1765899969393,0.03821539,87618.0,87617.0,0.0114158]
[1765899969700,0.03821539,87618.0,87612.0,0.3722163]
[1765899969897,0.03593274,87617.0,87615.0,0.0114159]
[1765899970093,0.03593274,87616.0,87615.0,0.0114159]
[1765899970294,0.03593274,87616.0,87615.0,0.01784555]
[1765899970701,0.03593274,87616.0,87615.0,0.70433555]
[1765899970900,2.69e-06,87618.0,87617.0,0.68649]
[1765899971097,2.69e-06,87618.0,87617.0,0.70433555]
[1765899971302,2.69e-06,87618.0,87617.0,1.44161555]
[1765899972001,0.3608,87643.0,87617.0,1.44161555]
[1765899972002,0.3608,87643.0,87642.0,0.6979025]
[1765899972193,0.0114092,87668.0,87657.0,0.0114106]
[1765899972392,0.0114094,87667.0,87657.0,0.02925615]
[1765899972702,0.3608,87660.0,87657.0,0.71574615]
[1765899972894,0.0036054,87658.0,87657.0,0.71574615]
[1765899973296,0.3608,87676.0,87657.0,0.401727]
[1765899973498,0.21234,87685.0,87683.0,0.0114072]
[1765899973695,0.3608,87688.0,87684.0,0.02785535]
[1765899973907,0.0114033,87714.0,87660.0,0.1918101]
[1765899973908,0.01368587,87698.0,87685.0,0.01644835]
[1765899974110,0.00228057,87698.0,87684.0,0.0114069]
[1765899974299,0.00228057,87698.0,87688.0,0.0114065]
[1765899974603,0.00228057,87698.0,87685.0,0.0114068]
[1765899974802,0.002,87688.0,87687.0,0.68649]
[1765899975204,0.0114074,87682.0,87678.0,0.3608]
[1765899975403,0.002,87688.0,87677.0,0.00017112]
[1765899975404,0.69078,87678.0,87677.0,0.00017112]
[1765899975908,0.00196966,87678.0,87677.0,0.00017112]
[1765899976096,0.34773966,87678.0,87677.0,0.00017112]
[1765899976297,0.00196966,87678.0,87677.0,0.00017112]
[1765899976500,0.00196966,87678.0,87677.0,0.69806912]
[1765899976701,0.00328057,87698.0,87688.0,0.00873829]
[1765899976904,0.00328057,87698.0,87677.0,0.00017112]
[1765899977196,0.7021878,87678.0,87677.0,0.00017112]
[1765899977391,0.69078,87678.0,87677.0,0.00017112]
[1765899978002,0.70870433,87678.0,87677.0,0.00017112]
[1765899978202,0.37883367,87678.0,87677.0,0.00017112]
[1765899978403,0.01803367,87678.0,87677.0,0.68666112]
[1765899978701,0.0114044,87705.0,87677.0,0.40017112]
[1765899979004,0.0114071,87684.0,87677.0,0.00017112]
[1765899979212,0.06026499,87713.0,87677.0,0.00017112]
[1765899979508,0.0114033,87714.0,87697.0,0.34458]
[1765899979708,0.06026499,87726.0,87693.0,0.0114057]
[1765899979895,0.0114054,87697.0,87688.0,0.0114065]
[1765899980096,0.3608,87693.0,87679.0,0.3608]
[1765899980297,0.0114015,87727.0,87677.0,0.00017112]
[1765899980298,0.3608,87697.0,87683.0,0.3608]
[1765899980497,0.2237445,87704.0,87691.0,0.3608]
[1765899980709,0.0114054,87697.0,87684.0,0.011407]
[1765899981015,0.0114077,87680.0,87677.0,0.00017112]
[1765899981309,0.69078,87678.0,87677.0,0.00017112]
[1765899982001,0.57314,87685.0,87684.0,0.001]
[1765899982307,1.26392,87685.0,87684.0,0.001]
[1765899982700,0.7021878,87678.0,87677.0,0.00017112]
[1765899982904,0.72867524,87678.0,87677.0,1.12e-06]
[1765899983511,1.12867524,87678.0,87677.0,1.12e-06]
[1765899983911,1.85027524,87678.0,87677.0,1.12e-06]
[1765899984208,0.69078,87678.0,87677.0,1.12e-06]
[1765899984404,1.05158,87678.0,87677.0,1.12e-06]
[1765899984611,1.05158,87678.0,87650.0,0.3608]
[1765899984612,0.0114099,87663.0,87652.0,0.0114111]
[1765899984799,0.21234,87660.0,87650.0,0.3608]
[1765899984999,1.0629913,87651.0,87637.0,0.0114131]
[1765899985199,0.34577,87648.0,87632.0,0.0114137]
[1765899985398,0.69078,87648.0,87627.0,0.0114144]
[1765899985608,0.90312,87640.0,87639.0,0.00017112]
[1765899985910,0.94091626,87640.0,87639.0,3.1e-06]
[1765899986104,0.7021938,87632.0,87631.0,0.00017112]
[1765899986313,0.7021938,87632.0,87631.0,1.12e-06]
[1765899986605,0.0114161,87615.0,87590.0,0.04510215]
[1765899986816,0.21234,87628.0,87599.0,0.011418]
[1765899987010,0.0114163,87613.0,87590.0,0.04510215]
[1765899987401,0.21234,87609.0,87590.0,0.04510215]
[1765899987708,0.00012817,87612.0,87608.0,0.0114168]
[1765899987914,7e-08,87612.0,87611.0,0.68649]
[1765899989417,7e-08,87612.0,87611.0,0.68949]
[1765899989609,0.21234,87640.0,87639.0,0.0114129]
[1765899989811,0.21234,87660.0,87639.0,0.0114129]
[1765899990006,0.02644332,87659.0,87657.0,0.0114105]
[1765899990204,0.02644332,87658.0,87653.0,0.011411]
[1765899990400,0.02644332,87657.0,87620.0,0.18152]
[1765899990609,0.00017029,87647.0,87630.0,0.00017112]
[1765899990903,0.3608,87642.0,87630.0,0.01158512]
[1765899991104,0.21234,87640.0,87630.0,0.00017112]
[1765899991414,0.00017029,87647.0,87646.0,0.011412]
[1765899991907,0.02663212,87647.0,87646.0,0.011412]
[1765899992114,0.00017029,87647.0,87646.0,0.011412]
[1765899992612,0.02664957,87647.0,87646.0,0.011412]
[1765899992808,0.23898957,87647.0,87646.0,0.011412]
[1765899993205,0.23898957,87647.0,87644.0,0.0114123]
[1765899993511,0.00017029,87647.0,87646.0,0.697902]
[1765899993810,0.00017029,87647.0,87646.0,0.012412]
[1765899994114,0.00017029,87647.0,87646.0,0.688792]
[1765899994514,0.00017029,87647.0,87646.0,0.687792]
[1765899994709,0.00117029,87647.0,87646.0,0.687792]
[1765899995921,9e-08,87647.0,87646.0,0.687792]
[1765899996519,9e-08,87647.0,87646.0,0.011412]
[1765899997517,9e-08,87647.0,87646.0,0.411412]
[1765899998015,9e-08,87647.0,87646.0,0.79004382]
[1765899998816,0.3722048,87702.0,87676.0,0.011408]
[1765899999011,0.0114055,87696.0,87693.0,0.0114058]
[1765899999216,0.02653671,87695.0,87694.0,0.01783182]
[1765899999410,0.36256671,87695.0,87694.0,0.01783182]
[1765899999813,0.71478671,87695.0,87694.0,0.01783182]
[1765900000123,1.11478671,87695.0,87694.0,1.82e-06]
[1765900000719,1.11478671,87695.0,87661.0,0.3608]
[1765900000720,0.33603,87662.0,87661.0,0.3608]
[1765900001020,0.71478671,87662.0,87661.0,0.3608]
[1765900001205,0.33603,87658.0,87657.0,0.0114105]
[1765900001409,0.68825,87655.0,87653.0,0.3608]
[1765900001610,0.71478671,87655.0,87653.0,0.3608]
[1765900002222,0.71478671,87655.0,87650.0,0.0114114]
[1765900002419,0.71478671,87655.0,87654.0,0.01151882]
[1765900002622,0.71478671,87655.0,87654.0,0.00010782]
[1765900003514,0.72619751,87655.0,87654.0,0.00010782]
[1765900003810,0.72719751,87655.0,87654.0,0.00010782]
[1765900004008,0.6996619,87647.0,87646.0,0.00017112]
[1765900004311,0.72619861,87647.0,87646.0,0.00017112]
[1765900005120,0.72619861,87647.0,87622.0,0.3608]
[1765900005121,0.68825,87640.0,87637.0,0.011413]
[1765900005308,0.02653671,87640.0,87637.0,0.011413]
[1765900005621,0.002,87647.0,87645.0,0.0114121]
[1765900005820,0.0114123,87644.0,87642.0,0.0114125]
[1765900006022,0.02657077,87643.0,87642.0,0.0114125]
[1765900006222,0.71482077,87643.0,87642.0,0.0114125]
[1765900006420,0.68825,87640.0,87639.0,0.3608]
[1765900006610,0.71482077,87640.0,87639.0,0.3608]
[1765900007518,0.71582077,87640.0,87639.0,0.3608]
[1765900007918,0.02657077,87640.0,87635.0,0.0114134]
[1765900008122,0.6996632,87637.0,87636.0,0.0114131]
[1765900008318,0.6996632,87637.0,87634.0,0.00017112]
[1765900008319,0.68825,87635.0,87634.0,0.00017112]
[1765900008619,0.7149407,87635.0,87634.0,1.12e-06]
[1765900008822,0.7149407,87635.0,87619.0,0.0114155]
[1765900008823,0.6996646,87626.0,87619.0,0.0114155]
[1765900009013,0.33603,87620.0,87619.0,0.0114155]
[1765900009218,0.68825,87618.0,87617.0,0.3722158]
[1765900009417,0.51482735,87618.0,87617.0,0.3722158]
[1765900009614,0.51482735,87618.0,87617.0,0.3608]
[1765900009910,0.51482735,87618.0,87617.0,0.3722158]
[1765900010715,0.0114158,87617.0,87614.0,0.0114161]
[1765900010925,0.68825,87611.0,87610.0,0.0114167]
[1765900011122,0.72624395,87611.0,87610.0,0.0114167]
[1765900011721,0.71482735,87611.0,87610.0,0.0114167]
[1765900012116,0.6996667,87610.0,87609.0,0.00017112]
[1765900012323,1.45312405,87610.0,87609.0,0.00017112]
[1765900012922,0.6996676,87603.0,87602.0,1e-06]
[1765900013120,1.44162735,87603.0,87602.0,1e-06]
[1765900013625,0.6996685,87596.0,87595.0,0.3608]
[1765900013822,0.68825,87595.0,87594.0,0.0114187]
[1765900014021,0.71482735,87595.0,87594.0,0.0114187]
[1765900014421,0.68825,87589.0,87588.0,0.0114195]
[1765900014728,0.33611603,87589.0,87588.0,0.0114195]
[1765900015130,8.603e-05,87589.0,87588.0,0.0114195]
[1765900015516,8.603e-05,87589.0,87588.0,0.3701795]
[1765900015721,0.00208603,87589.0,87588.0,0.3701795]
[1765900015922,0.9083095,87588.0,87587.0,0.36097122]
[1765900016119,0.00208603,87589.0,87588.0,0.0114195]
[1765900016626,0.6996695,87588.0,87587.0,0.00017122]
[1765900016817,0.72599779,87588.0,87587.0,0.00017122]
[1765900017935,1.44317829,87588.0,87587.0,0.00017122]
[1765900018131,0.71657829,87588.0,87587.0,0.00017122]
[1765900018326,0.68825,87588.0,87587.0,0.00017122]
[1765900018521,0.69125,87588.0,87587.0,0.00017122]
[1765900019124,0.69225,87588.0,87587.0,0.00017122]
[1765900019835,0.69125,87588.0,87587.0,0.00017122]
[1765900020226,0.7026696,87588.0,87587.0,0.00017122]
[1765900020431,0.69125,87588.0,87587.0,0.00017122]
[1765900020733,1.41753,87588.0,87587.0,0.00017122]
[1765900020942,1.4289496,87588.0,87587.0,0.00017122]
[1765900021938,0.20864,87584.0,87574.0,0.3608]
[1765900022124,0.68825,87562.0,87552.0,0.3608]
[1765900022326,0.68825,87553.0,87552.0,0.0114242]
[1765900022531,0.89689,87550.0,87549.0,0.011543]
[1765900022728,0.72632,87553.0,87552.0,0.0114242]
[1765900022929,0.6996736,87557.0,87556.0,0.0114236]
[1765900023125,0.89689,87550.0,87549.0,0.011543]
[1765900023330,0.89689,87550.0,87549.0,0.0001184]
[1765900023526,1.41457,87550.0,87549.0,0.0001184]
[1765900023723,1.41457,87550.0,87549.0,0.011543]
[1765900024335,1.41457,87550.0,87535.0,0.0114265]
[1765900024336,0.92129,87550.0,87538.0,0.01371084]
[1765900024539,0.34713,87547.0,87546.0,0.011425]
[1765900024836,0.34713,87547.0,87538.0,0.00228474]
[1765900024837,0.69056,87539.0,87538.0,0.00228474]
[1765900025038,1.05136,87539.0,87538.0,0.00228474]
[1765900025428,1.05146037,87539.0,87538.0,0.00228474]
[1765900026137,0.70803037,87539.0,87538.0,0.01371084]
[1765900026342,0.70803037,87539.0,87538.0,0.00228474]
[1765900026343,1.05146037,87539.0,87538.0,0.00228474]
[1765900026632,1.06288627,87539.0,87538.0,0.00228474]
[1765900027041,0.701987,87531.0,87530.0,0.00011446]
[1765900027938,0.69056,87531.0,87530.0,0.00011446]
[1765900028526,0.69056,87531.0,87530.0,0.00111446]
[1765900029040,1.062787,87531.0,87530.0,0.00111446]
[1765900029344,0.34723037,87539.0,87538.0,0.0114261]
[1765900029733,0.00010037,87539.0,87538.0,0.7162661]
[1765900029940,0.00010037,87539.0,87538.0,1.0770661]
[1765900030932,0.00110037,87539.0,87538.0,1.0770661]
[1765900031641,0.3608,87575.0,87574.0,0.0114214]
[1765900031941,0.69056,87597.0,87596.0,0.0114185]
[1765900032139,0.34713,87597.0,87588.0,0.3608]
[1765900032349,0.19497,87600.0,87599.0,0.0114181]
[1765900032644,0.19505954,87600.0,87599.0,0.0114181]
[1765900032839,8.954e-05,87600.0,87599.0,0.0114181]
[1765900033144,0.00017133,87608.0,87607.0,0.7162571]
[1765900033145,3e-08,87608.0,87607.0,0.7162571]
[1765900033335,3e-08,87608.0,87607.0,0.3722171]
[1765900033534,0.34713003,87608.0,87607.0,0.3722171]
[1765900033735,3e-08,87608.0,87607.0,0.3722171]
[1765900033942,0.69056003,87608.0,87607.0,0.0114171]
[1765900034242,0.34713,87606.0,87605.0,0.0114173]
[1765900035041,0.69056,87601.0,87600.0,0.0114179]
[1765900035442,0.34713,87606.0,87605.0,0.0114173]
[1765900036144,0.34713,87602.0,87598.0,0.3608]
[1765900036344,0.34713,87600.0,87597.0,0.0114183]
[1765900036639,0.00010741,87608.0,87604.0,0.0114174]
[1765900037238,0.00010741,87608.0,87607.0,0.70484]
[1765900038450,0.00010741,87608.0,87603.0,0.3608]
[1765900038451,0.3608,87627.0,87603.0,0.3608]
[1765900038745,0.0114136,87634.0,87616.0,0.3608]
[1765900038940,0.02627929,87631.0,87616.0,0.3608]
[1765900039145,0.3608,87645.0,87616.0,0.3608]
[1765900039146,0.3608,87645.0,87628.0,0.0114142]
[1765900039337,0.3608,87645.0,87625.0,0.3608]
[1765900039338,1.05136,87645.0,87644.0,0.0114123]
[1765900039649,1.05136,87645.0,87640.0,0.0114127]
[1765900039650,0.34713,87641.0,87640.0,0.0114127]
[1765900040447,0.0114128,87640.0,87636.0,0.00017123]
[1765900040748,0.69056,87637.0,87636.0,0.00017123]
[1765900041338,1.05136,87637.0,87636.0,0.00017123]
[1765900041537,1.05136,87637.0,87636.0,1.23e-06]
[1765900041748,1.77716,87637.0,87636.0,1.23e-06]
[1765900041944,0.02625165,87637.0,87636.0,0.70484123]
[1765900042137,0.3618,87641.0,87636.0,1.23e-06]
[1765900042338,0.001,87641.0,87640.0,0.34642]
[1765900042743,0.001,87640.0,87639.0,0.3722129]
[1765900043247,0.34813,87640.0,87639.0,0.3722129]
[1765900043449,0.00017123,87653.0,87639.0,0.3722129]
[1765900043751,0.69056,87652.0,87651.0,0.0114112]
[1765900044834,0.69056,87648.0,87647.0,0.0114118]
[1765900045236,0.69056,87644.0,87643.0,0.0114123]
[1765900045747,0.69056,87640.0,87639.0,0.3618]
[1765900046448,0.3608,87652.0,87639.0,0.3608]
[1765900046744,0.69056,87646.0,87645.0,0.0114121]
[1765900047144,0.69056,87642.0,87641.0,0.0114126]
[1765900047347,0.69056,87638.0,87637.0,0.0114132]
[1765900047937,0.0114128,87641.0,87637.0,0.0114132]
[1765900048143,0.011413,87638.0,87636.0,1.23e-06]
[1765900049655,0.012413,87638.0,87636.0,1.23e-06]
[1765900050037,0.003,87638.0,87636.0,1.23e-06]
[1765900050340,0.0114132,87637.0,87636.0,1.23e-06]
[1765900051951,0.002,87638.0,87636.0,1.23e-06]
[1765900051952,0.69156,87638.0,87637.0,0.0114132]
[1765900052152,0.002,87638.0,87636.0,1.23e-06]
[1765900052541,0.0134132,87638.0,87636.0,1.23e-06]
[1765900052737,0.002,87637.0,87636.0,1.23e-06]
[1765900053052,0.004,87637.0,87636.0,1.23e-06]
[1765900053349,0.002,87637.0,87636.0,0.71625453]
[1765900053648,0.001,87638.0,87637.0,0.68751]
[1765900053854,0.0114132,87637.0,87636.0,1.23e-06]
[1765900054152,0.002,87637.0,87636.0,1.23e-06]
[1765900054341,0.002,87637.0,87636.0,0.70138123]
[1765900054748,0.00228161,87658.0,87640.0,0.0114127]
[1765900054949,0.00228161,87658.0,87652.0,1.06218]
[1765900055449,0.00228161,87658.0,87652.0,0.3608]
[1765900055450,0.32741123,87653.0,87652.0,0.3608]
[1765900055640,0.65870123,87653.0,87652.0,0.3608]
[1765900055840,0.00017123,87653.0,87652.0,0.3608]
[1765900056040,0.00017123,87653.0,87652.0,1.06218]
[1765900056449,0.00017123,87653.0,87652.0,0.71731]
[1765900056849,0.00117123,87653.0,87652.0,1.06218]
[1765900057546,0.00017123,87653.0,87652.0,1.06218]
[1765900057746,0.00117123,87653.0,87652.0,1.06218]
[1765900058551,0.00064053,87653.0,87652.0,1.06318]
[1765900059650,0.00228161,87658.0,87652.0,0.3618]
[1765900059843,0.00228161,87658.0,87657.0,0.3679206]
[1765900060049,0.00228161,87658.0,87657.0,0.7127906]
[1765900060965,0.00228161,87658.0,87657.0,0.7137906]
[1765900061256,0.00451771,87658.0,87657.0,0.7137906]
[1765900061462,0.0114106,87657.0,87654.0,0.0114109]
[1765900061761,0.35830157,87658.0,87654.0,0.0114109]
[1765900061762,0.32724,87655.0,87654.0,0.0114109]
[1765900061946,0.02654386,87655.0,87654.0,0.7127909]
[1765900062149,0.03795446,87657.0,87654.0,0.7127909]
[1765900062345,0.65853,87653.0,87652.0,0.3608]
[1765900062551,0.6699421,87646.0,87645.0,0.0114117]
[1765900062849,0.3386515,87651.0,87650.0,0.0114115]
[1765900063048,0.669942,87648.0,87647.0,0.0114118]
[1765900063356,0.02879364,87648.0,87647.0,0.3679218]
[1765900063654,0.02879364,87648.0,87647.0,0.7127918]
[1765900063860,0.02879364,87648.0,87647.0,0.0114118]
[1765900064058,0.69873534,87648.0,87647.0,0.0114118]
[1765900064561,0.65853,87646.0,87645.0,0.3608]
[1765900064762,0.68508754,87646.0,87645.0,0.3608]
[1765900065257,0.02655754,87646.0,87645.0,1.06218]
[1765900065456,0.6607661,87646.0,87645.0,0.3608]
[1765900065760,0.68732364,87646.0,87645.0,0.3608]
[1765900065959,0.68732364,87646.0,87630.0,0.1953157]
[1765900065960,0.0114132,87637.0,87630.0,0.1953157]
[1765900066146,0.03797074,87637.0,87628.0,0.3608]
[1765900066461,0.04020684,87637.0,87620.0,0.00010991]
[1765900066862,0.3386552,87621.0,87620.0,0.00010991]
[1765900067055,0.69650274,87621.0,87620.0,0.00010991]
[1765900067557,0.65853,87597.0,87596.0,0.0114184]
[1765900067760,0.68508754,87597.0,87596.0,0.0114184]
[1765900068153,0.02655754,87597.0,87588.0,0.00017123]
[1765900068358,0.65853,87595.0,87594.0,0.0114187]
[1765900068557,0.68732364,87595.0,87594.0,0.0114187]
[1765900068757,0.68732364,87595.0,87594.0,0.3722187]
[1765900069153,0.35603364,87595.0,87594.0,0.3722187]
[1765900069362,0.02879364,87595.0,87594.0,0.7287287]
[1765900069747,0.02879364,87595.0,87594.0,1.0735987]
[1765900070261,0.0022361,87595.0,87594.0,1.0735987]
[1765900070455,0.6607661,87595.0,87594.0,0.3722187]
[1765900070660,0.68733824,87595.0,87594.0,0.3722187]
[1765900070864,0.68733824,87595.0,87594.0,0.7287287]
[1765900070865,0.02880824,87595.0,87594.0,0.7287287]
[1765900071162,0.02880824,87595.0,87594.0,1.0735987]
[1765900071564,0.02880824,87595.0,87594.0,1.0745987]
[1765900071749,0.02880824,87595.0,87594.0,1.0765987]
[1765900072259,0.35604824,87595.0,87594.0,0.3742188]
[1765900072451,0.02880824,87595.0,87594.0,1.0755988]
[1765900072958,0.0022361,87595.0,87594.0,1.0755988]
[1765900073458,0.0022361,87595.0,87594.0,1.4343988]
[1765900074168,0.0022361,87595.0,87594.0,1.4353988]
[1765900074659,0.0022361,87595.0,87594.0,1.4383988]
[1765900075167,2e-08,87596.0,87595.0,0.70138]
[1765900075755,2e-08,87596.0,87595.0,1.06218]
[1765900076562,2e-08,87596.0,87595.0,1.06418]
[1765900076763,0.32724002,87596.0,87595.0,0.71931]
[1765900076966,2e-08,87596.0,87595.0,0.3648]
[1765900077663,2e-08,87596.0,87595.0,0.3638]
[1765900078165,2e-08,87596.0,87595.0,0.3628]
[1765900078471,2e-08,87596.0,87595.0,0.7628]
[1765900078864,2e-08,87596.0,87595.0,0.7618]
[1765900079059,5e-08,87605.0,87604.0,0.0114175]
[1765900079258,5e-08,87605.0,87604.0,1.0735975]
[1765900080463,5e-08,87605.0,87604.0,1.4735975]
[1765900080659,5e-08,87605.0,87604.0,1.0735975]
[1765900080865,5e-08,87605.0,87604.0,1.8009575]
[1765900081060,0.09148,87648.0,87604.0,1.8009575]
[1765900081061,0.06141078,87649.0,87638.0,0.0114127]
[1765900081262,0.65853,87643.0,87642.0,0.0114123]
[1765900081461,0.65853,87652.0,87651.0,0.0114113]
[1765900081761,0.02675546,87652.0,87642.0,0.3608]
[1765900082071,0.00228161,87658.0,87657.0,0.7127906]
[1765900082566,0.00228161,87658.0,87657.0,1.0735906]
[1765900082760,1e-08,87658.0,87657.0,1.0735906]
[1765900083069,0.0114061,87692.0,87688.0,0.0114064]
[1765900083368,0.32724,87689.0,87688.0,0.0114064]
[1765900083560,0.0114041,87707.0,87694.0,0.0114057]
[1765900083758,0.0114058,87694.0,87690.0,0.44996]
[1765900083962,0.66684,87687.0,87686.0,0.3608]
[1765900084264,0.66684,87679.0,87678.0,0.00017112]
[1765900084469,0.011406,87693.0,87687.0,0.0114066]
[1765900084771,0.02653266,87692.0,87689.0,0.0114064]
[1765900084970,0.00017112,87695.0,87694.0,0.0114057]
[1765900085169,0.00017112,87695.0,87694.0,0.6975257]
[1765900085359,0.00017112,87695.0,87694.0,1.4228057]
[1765900085560,0.00017112,87695.0,87689.0,0.0114064]
[1765900085761,0.00017112,87695.0,87692.0,0.0114059]
[1765900086166,0.66684,87693.0,87692.0,0.0114059]
[1765900086364,0.00017112,87695.0,87692.0,0.0114059]
[1765900086560,0.00017112,87695.0,87694.0,0.68612]
[1765900086772,0.34275112,87695.0,87688.0,1.4581665]
[1765900086977,0.6782464,87689.0,87688.0,0.7216]
[1765900087270,0.6782473,87682.0,87681.0,1.5]